{"text_format":"3","workbook":"xlsx","n_sheets":1,"sheets":["Liste de courses"],"not_rendered":{"images":1,"defined_names":3},"read":"whole","date_system":"1900"}

{"sheet":"Liste de courses","index":0,"n_rows":31,"n_cols":8,"rows_kept":31,"merged":[[1,1,1,2]]}
[null,"Liste d'épicerie"]
[null,"DATE"]
[null,"TERMINÉ ?","Article","Catégorie","Quantité","Prix","Prix total","Marque/commentaires"]
[null,null,"Oranges","Fruits et légumes frais",null,null,{"$f":"IFERROR(SUM(ListeCourses[Quantité]*ListeCourses[Prix]), \"\")","v":{"v":0,"d":"0.00 $"}}]
[null,null,"Pommes","Fruits et légumes frais",null,null,{"$f":"IFERROR(SUM(ListeCourses[Quantité]*ListeCourses[Prix]), \"\")","v":{"v":0,"d":"0.00 $"}}]
[null,null,"Bananes","Fruits et légumes frais",null,null,{"$f":"IFERROR(SUM(ListeCourses[Quantité]*ListeCourses[Prix]), \"\")","v":{"v":0,"d":"0.00 $"}}]
[null,null,"Laitue","Fruits et légumes frais",null,null,{"$f":"IFERROR(SUM(ListeCourses[Quantité]*ListeCourses[Prix]), \"\")","v":{"v":0,"d":"0.00 $"}}]
[null,null,"Tomates","Fruits et légumes frais",null,null,{"$f":"IFERROR(SUM(ListeCourses[Quantité]*ListeCourses[Prix]), \"\")","v":{"v":0,"d":"0.00 $"}},"  "]
[null,null,"Lait ","Fruits et légumes fraiss laitiers",null,null,{"$f":"IFERROR(SUM(ListeCourses[Quantité]*ListeCourses[Prix]), \"\")","v":{"v":0,"d":"0.00 $"}}]
[null,null,"Fromage","Fruits et légumes fraiss laitiers",null,null,{"$f":"IFERROR(SUM(ListeCourses[Quantité]*ListeCourses[Prix]), \"\")","v":{"v":0,"d":"0.00 $"}}]
[null,null,"Œufs","Fruits et légumes fraiss laitiers",null,null,{"$f":"IFERROR(SUM(ListeCourses[Quantité]*ListeCourses[Prix]), \"\")","v":{"v":0,"d":"0.00 $"}}]
[null,null,"Fromage blanc","Fruits et légumes fraiss laitiers",null,null,{"$f":"IFERROR(SUM(ListeCourses[Quantité]*ListeCourses[Prix]), \"\")","v":{"v":0,"d":"0.00 $"}}]
[null,null,"Bœuf","Viande",null,null,{"$f":"IFERROR(SUM(ListeCourses[Quantité]*ListeCourses[Prix]), \"\")","v":{"v":0,"d":"0.00 $"}}]
[null,null,"Volaille","Viande",null,null,{"$f":"IFERROR(SUM(ListeCourses[Quantité]*ListeCourses[Prix]), \"\")","v":{"v":0,"d":"0.00 $"}}]
[null,null,"Jambon","Viande",null,null,{"$f":"IFERROR(SUM(ListeCourses[Quantité]*ListeCourses[Prix]), \"\")","v":{"v":0,"d":"0.00 $"}}]
[null,null,"Jus","Boissons",null,null,{"$f":"IFERROR(SUM(ListeCourses[Quantité]*ListeCourses[Prix]), \"\")","v":{"v":0,"d":"0.00 $"}}]
[null,null,"Café","Boissons",null,null,{"$f":"IFERROR(SUM(ListeCourses[Quantité]*ListeCourses[Prix]), \"\")","v":{"v":0,"d":"0.00 $"}}]
[null,null,"Thé","Boissons",null,null,{"$f":"IFERROR(SUM(ListeCourses[Quantité]*ListeCourses[Prix]), \"\")","v":{"v":0,"d":"0.00 $"}}]
[null,null,"Eau","Boissons",null,null,{"$f":"IFERROR(SUM(ListeCourses[Quantité]*ListeCourses[Prix]), \"\")","v":{"v":0,"d":"0.00 $"}}]
[null,null,"Nouilles","Pâtes",null,null,{"$f":"IFERROR(SUM(ListeCourses[Quantité]*ListeCourses[Prix]), \"\")","v":{"v":0,"d":"0.00 $"}}]
[null,null,"Riz","Pâtes",null,null,{"$f":"IFERROR(SUM(ListeCourses[Quantité]*ListeCourses[Prix]), \"\")","v":{"v":0,"d":"0.00 $"}}]
[null,null,"Conserves","Soupe",null,null,{"$f":"IFERROR(SUM(ListeCourses[Quantité]*ListeCourses[Prix]), \"\")","v":{"v":0,"d":"0.00 $"}}]
[null,null,"Mélange sec","Soupe",null,null,{"$f":"IFERROR(SUM(ListeCourses[Quantité]*ListeCourses[Prix]), \"\")","v":{"v":0,"d":"0.00 $"}}]
[null,null,"Pain","Boulangerie",null,null,{"$f":"IFERROR(SUM(ListeCourses[Quantité]*ListeCourses[Prix]), \"\")","v":{"v":0,"d":"0.00 $"}}]
[null,null,"Croustilles","Collation",null,null,{"$f":"IFERROR(SUM(ListeCourses[Quantité]*ListeCourses[Prix]), \"\")","v":{"v":0,"d":"0.00 $"}}]
[null,null,"Bretzels","Collation",null,null,{"$f":"IFERROR(SUM(ListeCourses[Quantité]*ListeCourses[Prix]), \"\")","v":{"v":0,"d":"0.00 $"}}]
[null,null,"Crème glacée","Collation",null,null,{"$f":"IFERROR(SUM(ListeCourses[Quantité]*ListeCourses[Prix]), \"\")","v":{"v":0,"d":"0.00 $"}}]
[null,null,"Cookies","Collation",null,null,{"$f":"IFERROR(SUM(ListeCourses[Quantité]*ListeCourses[Prix]), \"\")","v":{"v":0,"d":"0.00 $"}}]
[null,null,"Assiettes en papier","Fournitures",null,null,{"$f":"IFERROR(SUM(ListeCourses[Quantité]*ListeCourses[Prix]), \"\")","v":{"v":0,"d":"0.00 $"}}]
[null,null,"Serviettes","Fournitures",null,null,{"$f":"IFERROR(SUM(ListeCourses[Quantité]*ListeCourses[Prix]), \"\")","v":{"v":0,"d":"0.00 $"}}]
[{"$nulls":6},{"$f":"SUBTOTAL(109,ListeCourses[Prix total])","v":{"v":0,"d":"0.00 $"}}]